bitfinex-derivatives/quotes_SOLF0:USTF0_20250823
["timestamp","ask_amount","ask_price","bid_price","bid_amount"]
[1755920467906,25.286,197.82,197.7,2.77]
[1755920467907,2.79,197.77,197.7,2.77]
[1755920468104,2.79,197.77,197.71,4.614781]
[1755920468303,2.79,197.77,197.7,2.77]
[1755920469805,7.8486,197.77,197.7,2.77]
[1755920470509,2.79,197.76,197.66,5.0611]
[1755920470803,5.0591,197.75,197.67,6.57184414]
[1755920471006,5.0591,197.75,197.68,6.57184414]
[1755920471309,2.79,197.76,197.68,2.77]
[1755920471712,2.79,197.82,197.71,2.77]
[1755920472408,2.79,197.81,197.71,2.77]
[1755920472805,5.0586,197.77,197.71,2.77]
[1755920473107,5.0586,197.77,197.65,126.74]
[1755920473108,2.79,197.76,197.65,126.74]
[1755920473305,2.79,197.76,197.67,2.77]
[1755920473611,2.79,197.8,197.69,2.77]
[1755920473913,2.79,197.8,197.7,4.60148196]
[1755920474107,2.79,197.8,197.68,3.36447639]
[1755920474108,2.79,197.8,197.72,2.77]
[1755920474509,5.0579,197.79,197.72,2.77]
[1755920475208,2.79,197.8,197.72,2.77]
[1755920475407,2.79,197.84,197.74,2.77]
[1755920476009,5.0563,197.86,197.77,2.77]
[1755920476509,7.8466,197.84,197.74,6.13447639]
[1755920477613,7.8461,197.87,197.75,2.77]
[1755920478008,7.8461,197.87,197.77,3.36447639]
[1755920478209,7.8461,197.87,197.78,2.77]
[1755920478807,2.79,197.87,197.78,2.77]
[1755920480415,5.0561,197.86,197.78,2.77]
[1755920480717,2.79,197.85,197.78,2.77]
[1755920481316,7.8466,197.85,197.78,2.77]
[1755920481713,2.79,197.85,197.75,6.13447639]
[1755920482113,5.0571,197.83,197.75,6.13447639]
[1755920483414,7.8464,197.85,197.77,2.77]
[1755920484221,7.8464,197.85,197.77,7.8282]
[1755920484411,7.8464,197.85,197.77,2.77]
[1755920484608,7.8464,197.85,197.74,25.296]
[1755920484609,5.0558,197.88,197.79,2.77]
[1755920485013,5.0558,197.88,197.79,7.8277]
[1755920485610,2.79,197.89,197.79,7.8277]
[1755920485611,5.056,197.87,197.79,2.77]
[1755920486322,5.056,197.87,197.79,7.8277]
[1755920487616,5.056,197.87,197.8,5.0574]
[1755920488517,7.8454,197.89,197.81,5.0572]
[1755920488827,7.8454,197.89,197.82,2.8078326]
[1755920489019,2.79,197.89,197.82,2.8078326]
[1755920489417,2.79,197.89,197.83,4.6166268]
[1755920489719,2.79,197.89,197.82,2.8078326]
[1755920489919,2.79,197.89,197.83,4.61678967]
[1755920490120,2.79,197.89,197.82,2.8078326]
[1755920490321,2.79,197.89,197.83,4.61695527]
[1755920490521,2.79,197.89,197.83,5.0567]
[1755920491622,339.82,197.93,197.82,2.8078326]
[1755920491623,7.8443,197.93,197.85,2.77]
[1755920491821,0.03183383,197.88,197.84,3.36447639]
[1755920492122,2.79,197.97,197.87,6.13447639]
[1755920492316,2.79,197.97,197.87,3.36447639]
[1755920492518,2.79,197.97,197.91,2.77]
[1755920492723,2.79,197.97,197.91,7.8246]
[1755920493628,2.79,197.97,197.92,2.73248203]
[1755920494128,2.66,198.0,197.92,0.03248203]
[1755920494820,5.0538,197.95,197.92,0.03248203]
[1755920495018,7.7138,197.95,197.92,0.03248203]
[1755920495716,2.66,197.94,197.92,0.03248203]
[1755920495918,7.7142,197.94,197.92,0.03248203]
[1755920497626,5.0535,197.97,197.92,2.73248203]
[1755920497926,7.7135,197.97,197.92,2.73248203]
[1755920498725,7.7137,197.96,197.92,0.03248203]
[1755920499223,2.66,197.95,197.92,0.03248203]
[1755920500425,5.0537,197.96,197.92,0.03248203]
[1755920500627,7.7131,197.98,197.92,0.03248203]
[1755920500927,2.66,197.98,197.92,2.73248203]
[1755920502328,5.0523,198.01,197.93,5.0542]
[1755920503126,5.0523,198.01,197.95,0.03787551]
[1755920503927,7.7118,198.03,197.95,0.03787551]
[1755920504129,2.66,198.03,197.95,0.03787551]
[1755920504723,5.0522,198.02,197.95,5.09147551]
[1755920505031,2.66,198.03,197.95,5.09147551]
[1755920506133,2.66,198.03,197.95,0.03787551]
[1755920506930,2.66,197.99,197.95,0.03787551]
[1755920507531,5.0529,197.99,197.95,0.03787551]
[1755920507730,2.66,197.97,197.95,0.03787551]
[1755920508733,7.7129,197.99,197.95,0.03787551]
[1755920510327,5.0529,197.99,197.95,0.03787551]
[1755920510631,2.66,197.98,197.95,0.03787551]
[1755920516433,2.66,198.02,197.95,0.03787551]
[1755920516833,5.053,197.99,197.95,0.03787551]
[1755920517035,2.66,197.98,197.95,0.03787551]
[1755920517235,2.66,197.97,197.95,0.03787551]
[1755920517531,7.713,197.99,197.95,2.73787551]
[1755920517837,2.66,197.97,197.95,0.03787551]
[1755920518038,7.7131,197.98,197.95,0.03787551]
[1755920518237,5.0531,197.98,197.95,0.03787551]
[1755920518437,2.66,197.96,197.95,0.03787551]
[1755920519435,7.7131,197.98,197.95,0.03787551]
[1755920520840,7.7134,197.97,197.95,0.03787551]
[1755920521039,2.66,197.96,197.95,0.03787551]
[1755920522541,5.0529,197.99,197.95,0.03787551]
[1755920522741,2.66,197.98,197.95,0.03787551]
[1755920522944,2.66,197.97,197.95,0.03787551]
[1755920523138,2.67,197.96,197.95,0.03787551]
[1755920528345,2.67,197.98,197.95,0.03787551]
[1755920528544,25.2617,198.01,197.95,0.03787551]
[1755920528744,2.67,198.0,197.95,0.03787551]
[1755920529550,2.67,197.96,197.95,0.03787551]
[1755920532844,5.0529,197.99,197.95,0.03787551]
[1755920533049,2.67,197.99,197.95,2.70787551]
[1755920533450,2.67,197.98,197.95,2.70787551]
[1755920533649,2.67,197.98,197.95,0.03787551]
[1755920534344,2.67,197.97,197.95,0.03787551]
[1755920534651,2.67,197.96,197.95,0.03787551]
[1755920536952,5.0544,197.93,197.84,6.04116898]
[1755920537149,2.67,197.92,197.85,10.77384931]
[1755920537453,2.67,197.92,197.86,6.61178478]
[1755920537651,2.67,197.92,197.87,6.61178478]
[1755920537843,2.67,198.0,197.88,9.28178478]
[1755920538049,2.67,198.0,197.9,3.37116898]
[1755920538243,2.67,198.0,197.91,6.61178478]
[1755920538451,5.0534,197.97,197.92,4.63255337]
[1755920538648,2.67,197.94,197.91,5.0547]
[1755920539147,2.67,197.94,197.89,5.0553]
[1755920539350,25.2618,198.01,197.9,6.61006323]
[1755920539558,2.67,197.98,197.91,9.28006323]
[1755920539757,2.67,197.98,197.92,6.60931323]
[1755920539957,2.67,197.98,197.94,2.67]
[1755920540955,5.0524,198.01,197.93,5.0542]
[1755920541258,2.67,198.02,197.95,2.67]
[1755920541450,2.67,198.02,197.96,6.60772631]
[1755920541650,25.2526,198.08,197.94,3.37116898]
[1755920541651,2.67,198.06,197.94,3.37116898]
[1755920541855,2.67,198.06,197.91,6.04116898]
[1755920542057,3.37116898,198.07,197.92,6.60938754]
[1755920542058,2.67,198.04,197.92,6.60938754]
[1755920542256,2.67,198.04,197.93,6.60938754]
[1755920542559,2.67,198.04,197.94,6.60938754]
[1755920542758,5.0526,198.0,197.95,4.63093065]
[1755920543064,2.67,197.99,197.95,2.67]
[1755920543260,2.67,198.05,197.92,2.67]
[1755920543558,2.67,198.15,198.05,2.67]
[1755920543860,2.67,198.19,198.08,2.67]
[1755920544060,2.67,198.19,198.1,3.37116898]
[1755920544262,2.67,198.19,198.11,9.88131114]
[1755920544459,2.67,198.19,198.12,9.88131114]
[1755920544666,2.67,198.17,198.13,2.23601114]
[1755920544858,2.67,198.17,198.03,6.04116898]
[1755920545055,2.67,198.14,198.03,2.67]
[1755920545263,5.0499,198.11,198.03,2.67]
[1755920545463,7.7199,198.11,198.03,2.67]
[1755920548263,5.0502,198.1,198.03,2.67]
[1755920556264,2.86,198.16,198.06,2.82]
[1755920556667,2.86,198.16,198.08,3.37116898]
[1755920556874,7.9085,198.16,198.09,10.5214572]
[1755920557071,7.9085,198.16,198.1,5.02398746]
[1755920557261,25.2409,198.18,198.11,5.54220816]
[1755920557466,2.86,198.15,198.08,3.37116898]
[1755920557667,25.2422,198.17,198.09,10.56330305]
[1755920557864,25.2422,198.17,198.1,5.54078874]
[1755920558072,2.86,198.12,198.08,3.37116898]
[1755920558274,2.86,198.12,198.09,10.56124201]
[1755920558474,2.86,198.11,198.06,2.82]
[1755920558670,2.86,198.09,198.07,10.61675757]
[1755920558874,2.86,198.09,198.03,3.37116898]
[1755920559072,5.0499,198.11,198.04,10.61885121]
[1755920559373,2.86,198.08,198.05,10.61885121]
[1755920559676,2.86,198.08,198.06,10.61885121]
[1755920559871,2.86,198.08,198.07,10.61885121]
[1755920560776,5.0504,198.09,198.07,10.61885121]
[1755920560977,5.0504,198.09,198.02,2.82]
[1755920560978,5.0504,198.09,198.08,5.54036538]
[1755920561477,5.0498,198.11,198.08,5.54036538]
[1755920561678,5.0498,198.11,198.03,5.0516]
[1755920561880,2.86,198.12,198.05,2.82]
[1755920562179,2.86,198.12,198.06,10.61579279]
[1755920562378,2.86,198.12,198.01,6.19116898]
[1755920562578,2.86,198.12,198.02,10.61707374]
[1755920562878,2.86,198.12,198.03,10.61707374]
[1755920563079,2.86,198.12,198.04,10.61707374]
[1755920563279,2.86,198.12,198.05,10.61707374]
[1755920563473,2.86,198.12,198.06,10.61707374]
[1755920563674,7.9102,198.1,198.07,10.61618406]
[1755920563879,7.9102,198.1,198.02,2.82]
[1755920564183,7.9102,198.1,198.03,10.61591784]
[1755920564378,7.9102,198.1,198.04,10.61591784]
[1755920564577,7.9102,198.1,198.05,13.43591784]
[1755920564780,7.9102,198.1,198.06,13.43591784]
[1755920564982,7.9102,198.1,198.07,10.61591784]
[1755920565278,7.9102,198.1,198.06,2.82]
[1755920565480,7.9102,198.1,198.07,5.53691568]
[1755920565680,7.9102,198.1,198.06,2.82]
[1755920565879,7.9102,198.1,198.07,5.53656894]
[1755920566076,5.0496,198.12,198.04,6.19116898]
[1755920566280,5.0496,198.12,198.05,2.82]
[1755920566480,5.0496,198.12,198.06,10.60955884]
[1755920566681,5.0496,198.12,198.07,10.60955884]
[1755920566881,5.0496,198.12,198.08,2.82]
[1755920569477,25.2374,198.2,198.07,2.82]
[1755920569684,25.2399,198.18,198.08,16.77645967]
[1755920569873,2.86,198.17,198.09,10.58529069]
[1755920570078,5.0491,198.14,198.1,10.58529069]
[1755920570376,7.9091,198.14,198.11,5.51323193]
[1755920570576,7.9091,198.14,198.08,6.19116898]
[1755920570772,7.9091,198.14,198.09,13.40261835]
[1755920570982,2.86,198.2,198.11,2.82]
[1755920571982,5.0484,198.17,198.11,2.82]
[1755920572181,2.86,198.2,198.12,5.5107175]
[1755920572374,2.86,198.2,198.11,2.82]
[1755920572579,2.86,198.2,198.12,5.51102454]
[1755920572883,2.86,198.2,198.11,2.82]
[1755920573084,2.86,198.19,198.12,5.51076581]
[1755920573288,2.86,198.19,198.08,5.0504]
[1755920573486,2.86,198.19,198.09,10.5833381]
[1755920573781,25.2412,198.17,198.1,10.5833381]
[1755920574085,2.86,198.16,198.04,2.82]
[1755920574378,2.86,198.16,198.05,10.58840303]
[1755920574583,5.0497,198.11,198.07,2.82]
[1755920574777,5.0497,198.11,198.08,10.58840303]
[1755920574977,5.0497,198.11,198.08,2.82]
[1755920576183,5.0497,198.11,198.09,5.51704953]
[1755920576380,5.0497,198.11,198.08,2.82]
[1755920576584,5.0497,198.11,198.09,10.59294406]
[1755920576785,5.0497,198.11,198.08,2.82]
[1755920576977,5.0497,198.11,198.09,10.59294406]
[1755920577185,5.0497,198.11,198.08,2.82]
[1755920577377,5.0497,198.11,198.09,10.59592058]
[1755920577684,5.0497,198.11,198.08,2.82]
[1755920577885,5.0497,198.11,198.09,10.59588455]
[1755920578084,5.0497,198.11,198.08,2.82]
[1755920578281,5.0497,198.11,198.09,10.5980486]
[1755920578477,5.0497,198.11,198.08,2.82]
[1755920578682,5.0497,198.11,198.09,10.5980486]
[1755920578886,5.0497,198.11,198.1,10.59637277]
[1755920579885,5.0497,198.11,198.08,2.82]
[1755920580091,5.0497,198.11,198.09,10.5967872]
[1755920580283,5.0497,198.11,198.08,2.82]
[1755920580284,5.0497,198.11,198.1,5.51904604]
[1755920580884,7.9097,198.11,198.1,5.51904604]
[1755920581091,5.0507,198.08,198.02,6.19116898]
[1755920581285,5.0507,198.08,198.04,2.82]
[1755920581489,5.0507,198.08,198.05,13.42359383]
[1755920581689,5.0507,198.08,198.06,10.60359383]
[1755920581890,5.0507,198.08,198.07,10.60359383]
[1755920583785,5.0507,198.08,198.07,10.60944852]
[1755920583988,5.0507,198.08,198.07,10.6148526]
[1755920584389,5.0507,198.08,198.07,10.61866172]
[1755920586895,5.0507,198.08,198.07,10.63132428]
[1755920587891,7.8401,198.1,198.07,10.63132428]
[1755920588092,7.8401,198.1,198.08,10.63132428]
[1755920588292,7.8401,198.1,198.09,10.63132428]
[1755920590095,2.79,198.15,198.09,10.63132428]
[1755920590291,2.79,198.15,198.1,13.33132428]
[1755920590498,2.79,198.15,198.11,10.63132428]
[1755920590696,5.0491,198.14,198.12,10.63132428]
[1755920590895,5.0491,198.14,198.13,10.63132428]
[1755920592797,5.0485,198.16,198.13,13.33132428]
[1755920593001,5.0485,198.16,198.14,5.46915193]
[1755920593198,5.0485,198.16,198.15,10.49140304]
[1755920593699,5.0485,198.16,198.15,10.490835]
[1755920595198,5.0484,198.17,198.15,13.190835]
[1755920595394,5.0484,198.17,198.16,10.490835]
[1755920596197,7.8384,198.17,198.16,10.490835]
[1755920597101,5.05,198.1,198.07,2.7]
[1755920597301,1.83,198.13,198.08,2.7]
[1755920597693,1.83,198.13,198.04,8.42256898]
[1755920597895,1.83,198.13,198.05,1.97090321]
[1755920598093,1.83,198.13,198.06,4.67090321]
[1755920598294,1.83,198.13,198.06,2.7]
[1755920598496,5.0498,198.11,198.06,2.7]
[1755920598697,5.0498,198.11,198.07,2.7]
[1755920599097,5.0498,198.11,198.08,2.7]
[1755920600506,6.8798,198.11,198.08,2.7]
[1755920601507,5.0498,198.11,198.08,2.7]
[1755920601902,5.0498,198.11,198.09,2.7]
[1755920602106,5.0498,198.11,198.1,2.7]
[1755920602303,5.0503,198.09,198.06,2.7]
[1755920602609,5.0503,198.09,198.07,2.7]
[1755920602804,1.83,198.13,198.03,2.7]
[1755920603009,1.83,198.13,198.04,1.9709362]
[1755920603311,5.0509,198.07,198.0,3.37116898]
[1755920603500,5.0509,198.07,198.04,2.7]
[1755920603703,6.8809,198.07,198.04,2.7]
[1755920603913,6.8809,198.07,198.01,2.7]
[1755920604205,6.8809,198.07,198.03,2.7]
[1755920604410,5.0509,198.07,198.04,4.67140977]
[1755920604711,5.0509,198.07,198.04,2.7]
[1755920605509,6.8709,198.07,198.04,2.7]
[1755920606711,6.8709,198.07,198.0,5.0524]
[1755920606908,6.8709,198.07,198.01,4.67063765]
[1755920607104,1.82,198.06,198.02,4.67063765]
[1755920607309,1.82,198.06,198.02,2.7]
[1755920608110,5.0509,198.07,198.03,2.7]
[1755920608813,1.82,198.13,198.02,2.7]
[1755920609110,1.82,198.13,198.01,3.37116898]
[1755920609111,1.82,198.13,198.04,2.7]
[1755920609306,1.82,198.12,198.06,2.7]
[1755920609512,1.82,198.12,198.07,10.02214104]
[1755920609705,25.2466,198.13,198.08,10.02214104]
[1755920609908,1.82,198.12,198.06,2.7]
[1755920610110,25.2466,198.13,198.07,10.02278857]
[1755920610310,1.82,198.1,198.08,10.02278857]
[1755920610610,5.0504,198.09,198.06,2.7]
[1755920610812,5.0504,198.09,198.07,10.02092853]
[1755920611014,5.0504,198.09,198.08,10.02092853]
[1755920611407,5.0504,198.09,198.08,10.02093562]
[1755920614322,6.8704,198.09,198.08,10.02093562]
[1755920615714,5.0511,198.06,198.03,2.86]
[1755920615914,5.0511,198.06,198.04,12.87827896]
[1755920616111,5.0511,198.06,198.05,10.01827896]
[1755920619722,25.2474,198.12,198.05,12.87827896]
[1755920620021,1.82,198.11,198.06,10.01827896]
[1755920620235,25.2474,198.12,198.07,4.8628967]
[1755920620423,1.82,198.09,198.07,4.8628967]
[1755920620724,5.051,198.06,198.0,2.86]
[1755920621020,5.051,198.06,198.01,10.01015097]
[1755920621220,5.051,198.06,198.04,2.86]
[1755920621423,5.051,198.06,198.05,10.01015097]
[1755920621920,5.0485,198.16,198.06,2.86]
[1755920622120,14.08133261,198.24,198.02,25.2592]
[1755920622121,27.0537,198.23,198.11,3.37116898]
[1755920622320,27.0537,198.23,198.13,2.86]
[1755920622623,25.2348,198.22,198.14,10.01015097]
[1755920622824,25.2348,198.22,198.15,10.01015097]
[1755920623026,25.2348,198.22,198.16,10.01015097]
[1755920623226,5.0479,198.19,198.17,10.01015097]
[1755920623421,5.0479,198.19,198.18,10.01015097]
[1755920624723,6.8679,198.19,198.18,4.87660917]
[1755920627423,5.0479,198.19,198.18,7.73660917]
[1755920627626,5.0479,198.19,198.18,12.85706365]
[1755920628324,5.0479,198.19,198.18,7.73660917]
[1755920629629,5.0479,198.19,198.18,4.87660917]
[1755920629824,5.0481,198.18,198.15,2.86]
[1755920630025,5.0481,198.18,198.16,9.91983192]
[1755920630219,5.0481,198.18,198.17,9.91965221]
[1755920630530,5.0481,198.18,198.17,9.91861873]
[1755920632135,5.0481,198.18,198.15,2.86]
[1755920632326,27.056,198.21,198.11,6.23116898]
[1755920632526,27.056,198.21,198.12,9.91485222]
[1755920632725,27.056,198.21,198.13,9.91485222]
[1755920632930,27.056,198.21,198.11,2.86]
[1755920633130,27.056,198.21,198.12,9.91760609]
[1755920633329,27.056,198.21,198.13,9.91760609]
[1755920633531,5.0489,198.15,198.11,2.86]
[1755920633725,5.0489,198.15,198.12,9.91584685]
[1755920633927,5.0483,198.17,198.13,9.91584685]
[1755920634133,5.0483,198.17,198.15,2.86]
[1755920634323,5.0483,198.17,198.16,2.86]
[1755920634523,5.0486,198.16,198.11,2.86]
[1755920634724,5.0486,198.16,198.12,9.91298386]
[1755920634934,5.0486,198.16,198.15,2.86]
[1755920635124,5.048,198.18,198.15,2.86]
[1755920635634,5.048,198.18,198.16,2.86]
[1755920636132,5.048,198.18,198.12,2.86]
[1755920636327,5.048,198.18,198.13,13.28259261]
[1755920636537,5.048,198.18,198.14,12.77142363]
[1755920636736,5.0484,198.17,198.14,2.86]
[1755920636937,1.82,198.18,198.14,2.86]
[1755920637128,1.82,198.2,198.14,2.86]
[1755920638430,1.82,198.15,198.09,2.86]
[1755920638631,1.82,198.18,198.11,2.86]
[1755920638932,5.0489,198.15,198.12,9.91402863]
[1755920639132,5.0489,198.15,198.13,2.86]
[1755920639735,5.0489,198.15,198.1,2.86]
[1755920639931,5.0489,198.15,198.11,9.91303098]
[1755920640232,5.0489,198.15,198.12,9.91303098]
[1755920640428,5.0491,198.14,198.08,3.37116898]
[1755920640629,6.8691,198.14,198.1,2.86]
[1755920642638,1.82,198.13,198.04,2.86]
[1755920642833,1.82,198.13,198.05,9.92265956]
[1755920643033,5.0515,198.04,198.0,2.86]
[1755920643335,5.0515,198.04,197.97,2.73]
[1755920643838,5.051,198.06,197.97,2.73]
[1755920644932,5.0514,198.05,197.97,2.73]
[1755920645138,1.82,198.07,197.97,2.73]
[1755920645433,5.051,198.06,197.99,3.37116898]
[1755920645636,5.051,198.06,197.94,25.2701]
[1755920645637,5.051,198.06,198.0,2.73]
[1755920646241,5.0504,198.09,198.0,2.73]
[1755920647035,5.0507,198.08,198.0,2.73]
[1755920647235,1.82,198.1,198.0,2.73]
[1755920647437,27.07,198.1,198.0,2.73]
[1755920647638,5.0512,198.06,198.0,2.73]
[1755920649240,5.0514,198.05,197.97,5.0532]
[1755920649445,1.82,198.06,197.96,2.73]
[1755920649743,1.82,198.06,197.97,1.96487838]
[1755920649938,1.82,198.06,197.98,2.73]
[1755920650243,5.0514,198.05,197.98,2.73]
[1755920651545,0.03324784,198.03,197.99,2.73]
[1755920651744,0.03324784,198.03,198.02,2.73]
[1755920651945,25.2498,198.1,198.02,2.73]
[1755920652140,6.8714,198.05,197.99,6.10116898]
[1755920653745,5.0508,198.07,198.0,2.73]
[1755920655147,6.8711,198.06,198.01,12.4990224]
[1755920655344,6.8711,198.06,198.02,9.76846261]
[1755920655541,1.82,198.04,197.98,5.0529]
[1755920655746,1.82,198.04,197.99,12.50006539]
[1755920655939,1.82,198.04,198.0,12.50006539]
[1755920656141,1.82,198.04,198.01,5.0510945]
[1755920656446,1.82,198.03,197.96,11.15456898]
[1755920656646,1.82,198.03,197.97,9.7713537]
[1755920656845,6.8721,198.02,197.98,9.77109226]
[1755920657043,6.8721,198.02,197.99,9.77109226]
[1755920657248,6.8721,198.02,197.96,6.10116898]
[1755920657452,25.2535,198.08,197.9,364.6945]
[1755920657453,1.82,197.98,197.92,2.73]
[1755920657650,1.82,198.03,197.93,9.77594169]
[1755920657844,1.82,198.03,197.94,9.77594169]
[1755920658038,1.82,198.03,197.95,5.05400435]
[1755920658254,1.82,198.03,197.92,2.73]
[1755920658448,1.82,198.01,197.93,9.77594735]
[1755920658649,1.82,198.01,197.94,9.77594735]
[1755920658852,1.82,198.01,197.92,2.73]
[1755920659055,1.82,198.01,197.93,9.77240895]
[1755920659251,1.82,198.01,197.94,9.77240895]
[1755920659451,1.82,198.01,197.92,2.73]
[1755920659649,6.8732,197.98,197.93,12.49834496]
[1755920659950,6.8732,197.98,197.93,2.73]
[1755920660852,6.8732,197.98,197.94,2.73]
[1755920662055,5.0532,197.98,197.91,5.0546]
[1755920662251,28.63146898,198.02,197.92,5.04637456]
[1755920662450,1.82,197.94,197.87,2.73]
[1755920662650,1.82,197.94,197.88,9.76085422]
[1755920662852,1.82,197.94,197.89,7.77612783]
[1755920663051,1.82,197.93,197.89,2.73]
[1755920668552,1.82,197.93,197.86,3.37116898]
[1755920668553,1.83,197.97,197.9,2.73]
[1755920669551,1.83,197.97,197.9,7.7849]
[1755920669754,1.83,197.97,197.91,2.73]
[1755920671755,6.884,197.95,197.91,2.73]
[1755920674359,6.874,197.95,197.91,2.73]
[1755920675363,5.054,197.95,197.91,2.73]
[1755920675559,6.874,197.95,197.91,2.73]
[1755920676160,1.82,197.94,197.91,2.73]
[1755920677460,5.0542,197.94,197.87,2.82]
[1755920677665,5.0542,197.94,197.88,9.7514121]
[1755920677862,5.0542,197.94,197.89,9.7514121]
[1755920678063,1.82,197.92,197.9,5.04256776]
[1755920678263,1.82,197.92,197.88,2.82]
[1755920678468,1.82,197.92,197.89,12.57873974]
[1755920678766,5.0542,197.94,197.9,5.04635697]
[1755920678954,6.8742,197.94,197.9,2.82]
[1755920679361,6.8742,197.94,197.91,5.04750908]
[1755920679563,6.8742,197.94,197.9,2.82]
[1755920679764,6.8742,197.94,197.91,5.04818755]
[1755920679961,6.8742,197.94,197.87,5.0557]
[1755920679962,5.0542,197.94,197.87,5.0557]
[1755920680169,1.82,197.94,197.88,9.7719206]
[1755920680466,1.82,197.94,197.89,5.04878705]
[1755920680662,5.0555,197.89,197.86,2.82]
[1755920680863,1.82,197.88,197.87,9.77574261]
[1755920681066,1.82,197.88,197.82,2.82]
[1755920681369,1.82,197.87,197.83,9.78063655]
[1755920681564,1.82,197.85,197.84,9.78063655]
[1755920681767,1.82,197.85,197.79,2.82]
[1755920681969,1.82,197.85,197.8,9.78714297]
[1755920682272,1.82,197.82,197.81,9.78714297]
[1755920682470,1.82,197.82,197.81,9.78725582]
[1755920683670,6.8773,197.82,197.76,2.82]
[1755920683867,5.0573,197.82,197.78,2.82]
[1755920684068,6.8773,197.82,197.79,9.78698551]
[1755920684372,6.8773,197.82,197.8,9.78961802]
[1755920684564,6.8773,197.82,197.81,9.78961802]
[1755920684761,6.8773,197.82,197.81,5.05908365]
[1755920685367,5.0573,197.82,197.81,7.87908365]
[1755920685772,6.8773,197.82,197.81,5.05908365]
[1755920686070,6.8773,197.82,197.73,5.0592]
[1755920686071,6.8777,197.8,197.73,2.82]
[1755920686266,6.8777,197.8,197.74,9.79241408]
[1755920686461,6.8777,197.8,197.72,125.82]
[1755920686462,1.82,197.79,197.75,9.79241408]
[1755920686666,1.82,197.79,197.76,9.79241408]
[1755920686972,5.0577,197.8,197.77,12.60975811]
[1755920687269,5.0577,197.8,197.78,5.05919714]
[1755920687462,1.82,197.82,197.73,2.82]
[1755920687665,1.82,197.82,197.75,2.82]
[1755920687861,1.82,197.86,197.77,2.82]
[1755920688064,1.82,197.86,197.78,9.78903212]
[1755920688269,1.82,197.86,197.79,5.05744551]
[1755920688466,5.0567,197.84,197.77,2.82]
[1755920688677,1.82,197.86,197.79,2.82]
[1755920688882,1.82,197.82,197.75,2.82]
[1755920689174,1.82,197.82,197.76,12.60328551]
[1755920689379,1.82,197.86,197.78,2.82]
[1755920689675,1.82,197.86,197.79,9.78328551]
[1755920689866,1.82,197.86,197.8,5.05450577]
[1755920690064,1.82,197.86,197.78,2.82]
[1755920690270,1.82,197.86,197.79,9.7796135]
[1755920690470,1.82,197.84,197.8,5.05261632]
[1755920690678,1.82,197.84,197.78,2.82]
[1755920690885,1.82,197.84,197.81,2.82]
[1755920691376,1.82,197.81,197.73,2.82]
[1755920691580,1.82,197.81,197.75,2.82]
[1755920691779,1.82,197.81,197.77,2.82]
[1755920691979,1.82,197.85,197.78,12.59627077]
[1755920692176,1.82,197.85,197.79,5.05088789]
[1755920692374,1.82,197.85,197.78,2.82]
[1755920692571,1.82,197.85,197.79,9.77535578]
[1755920692777,1.82,197.85,197.78,2.82]
[1755920692974,1.82,197.85,197.79,9.77410756]
[1755920693176,5.057,197.83,197.8,7.86977741]
[1755920693377,5.057,197.83,197.8,2.82]
[1755920694780,25.2772,197.89,197.82,2.82]